fUSD/lending_fUSD_20251217
["ID","MTS","AMOUNT","RATE_DAILY","PERIOD"]
[398861146,1765931448936,-150.0,0.00017828,2]
[398861147,1765931448945,-150.0,0.00017836,2]
[398861148,1765931448954,-150.0,0.00017847,2]
[398861149,1765931448964,-150.0,0.00017847,2]
[398861150,1765931448973,-150.0,0.00017847,2]
[398861151,1765931448982,-150.0,0.0001786,2]
[398861152,1765931448992,-150.0,0.00017861,2]
[398861153,1765931449001,-150.0,0.00017885,2]
[398861154,1765931449010,-150.0,0.00017892,2]
[398861155,1765931449020,-150.0,0.00017893,2]
[398861156,1765931449029,-150.0,0.00017896,2]
[398861157,1765931449038,-625.71728438,0.000179,2]
[398861158,1765931449048,-354.05942286,0.000179,3]
[398861159,1765931449058,-4033.67288862,0.000179,2]
[398861160,1765931449068,-150.0,0.00017901,2]
[398861161,1765931449077,-150.0,0.00017901,2]
[398861162,1765931449086,-1205.81161732,0.00017905,2]
[398861163,1765931449095,-150.0,0.0001791,2]
[398861164,1765931449104,-150.0,0.00017923,2]
[398861165,1765931449116,-150.0,0.00017924,2]
[398861166,1765931449127,-150.0,0.00017932,2]
[398861167,1765931449135,-362.5852071,0.00017942,2]
[398861168,1765931449145,-500.0,0.00017945,2]
[398861169,1765931449155,-150.0,0.00017951,2]
[398861170,1765931449164,-150.0,0.00017956,2]
[398861171,1765931449173,-150.0,0.00017957,2]
[398861172,1765931449183,-150.0,0.00017961,2]
[398861173,1765931449192,-150.0,0.00017967,2]
[398861174,1765931449203,-1000.0,0.00017967,2]
[398861175,1765931449213,-150.0,0.00017974,2]
[398861176,1765931449223,-285.0,0.00017979,2]
[398861177,1765931449233,-150.0,0.00017989,2]
[398861178,1765931449244,-152.0,0.00017991,2]
[398861179,1765931449255,-152.0,0.00017991,2]
[398861180,1765931449264,-152.0,0.00017991,2]
[398861181,1765931449273,-152.0,0.00017991,2]
[398861182,1765931449283,-152.0,0.00017991,2]
[398861183,1765931449292,-151.16701834,0.00017991,2]
[398861184,1765931449302,-152.0,0.00017991,2]
[398861185,1765931449311,-157.0,0.00017991,2]
[398861186,1765931449321,-157.0,0.00017991,2]
[398861187,1765931449331,-157.0,0.00017991,2]
[398861188,1765931449341,-157.0,0.00017991,2]
[398861189,1765931449350,-157.0,0.00017991,2]
[398861190,1765931449359,-152.0,0.00017991,2]
[398861191,1765931449370,-152.0,0.00017991,2]
[398861192,1765931449379,-152.0,0.00017991,2]
[398861193,1765931449388,-152.0,0.00017991,2]
[398861194,1765931449398,-152.0,0.00017991,2]
[398861195,1765931449408,-152.0,0.00017991,2]
[398861196,1765931449417,-152.0,0.00017991,2]
[398861197,1765931449427,-152.0,0.00017991,2]
[398861198,1765931449439,-152.0,0.00017991,2]
[398861199,1765931449450,-152.0,0.00017991,2]
[398861200,1765931449459,-152.0,0.00017991,2]
[398861201,1765931449469,-152.0,0.00017991,2]
[398861202,1765931449479,-152.0,0.00017991,2]
[398861203,1765931449488,-152.0,0.00017991,2]
[398861204,1765931449499,-200.43276945,0.00017997,2]
[398861205,1765931449509,-500.0,0.00017997,2]
[398861206,1765931449519,-19405.22431781,0.00017998,2]
[398861207,1765931449533,-128430.8345572,0.00017998,2]
[398861208,1765931449542,-500.0,0.00017999,2]
[398861209,1765931449551,-500.0,0.00017999,2]
[398861210,1765931449560,-150.0,0.00017999,2]
[398861211,1765931449573,-227091.94272004,0.00018,2]
[398861212,1765931449582,-866.90303667,0.00018,2]
[398861213,1765931451618,-502.55488152,0.00013603,2]
[398861214,1765931451628,-450.97179572,0.00013603,2]
[398861215,1765931451637,-500.0,0.00013603,2]
[398861216,1765931451646,-500.0,0.00016438,2]
[398861217,1765931451655,-500.0,0.00016438,2]
[398861218,1765931451664,-350.27466612,0.00016438,2]
[398861219,1765931451674,-500.0,0.00016438,2]
[398861220,1765931451685,-500.0,0.00016438,2]
[398861221,1765931451695,-500.0,0.00016438,2]
[398861222,1765931451705,-381.09540283,0.00016438,2]
[398861223,1765931451719,-118.90459717,0.00016438,2]
[398861224,1765931451728,-500.0,0.00016438,2]
[398861225,1765931451737,-646.82040323,0.00016506,2]
[398861226,1765931451750,-716.99396338,0.00016506,2]
[398861227,1765931452843,-669.74185477,0.00014016,2]
[398861228,1765931452852,-3391.40002876,0.00016506,2]
[398861229,1765931452862,-237.94663154,0.000179,2]
[398861230,1765931452871,-1271.36602461,0.00018,2]
[398861231,1765931452935,-4880.32,0.00018,2]
[398861235,1765931730551,2000.0,0.00022,30]
[398861236,1765931743480,2000.0,0.00022,30]
[398861237,1765931750390,418.69,7.637e-05,2]
[398861238,1765931750595,418.69,8.039e-05,2]
[398861239,1765931750858,418.69,8.441e-05,2]
[398861240,1765931751003,418.69,8.843e-05,2]
[398861241,1765931751266,418.69,9.245e-05,2]
[398861242,1765931751399,418.69,9.647e-05,2]
[398861243,1765931751613,418.69,0.00010049,2]
[398861244,1765931751826,418.69,0.00010451,2]
[398861245,1765931752006,418.69,0.00010853,2]
[398861246,1765931752241,418.69,0.00011255,2]
[398861247,1765931752480,418.69,0.00011657,2]
[398861248,1765931752610,2000.0,0.00022,30]
[398861249,1765931761424,2000.0,0.00022,30]
[398861250,1765931767933,-418.69,0.00012059,2]
[398861251,1765931770405,2000.0,0.00022,30]
[398861252,1765931779479,2000.0,0.00022,30]
[398861254,1765931789964,2000.0,0.00022,30]
[398861255,1765931798364,2000.0,0.00022,30]
[398861256,1765931820684,2000.0,0.00022,30]
[398861257,1765931829556,2000.0,0.00022,30]
[398861258,1765931857752,152.18,0.00022,30]
[398861266,1765932476974,999.0,0.00012541,3]
[398861384,1765932632967,-250.0,0.00012259,2]
[398861386,1765932632977,-250.0,0.00012259,2]
[398861388,1765932632985,-195.0,0.00012259,2]
[398861390,1765932632994,-250.0,0.00012332,2]
[398861392,1765932633003,-418.69,0.0001246,2]
[398861394,1765932633012,-300.0,0.00012689,2]
[398861396,1765932633021,-300.0,0.00012689,2]
[398861398,1765932633030,-417.44261799,0.00012689,2]
[398861406,1765932633087,-782.55738201,0.00012689,2]
[398861408,1765932633096,-17018.11349348,0.0001269,2]
[398861410,1765932633105,-9330.1203027,0.0001269,2]
[398861412,1765932633114,-407.43476287,0.0001269,2]
[398861414,1765932633123,-300.0,0.00012696,2]
[398861416,1765932633132,-11982.67,0.00012697,2]
[398861418,1765932633141,-500.0,0.00012761,2]
[398861420,1765932633151,-499.40921187,0.00012761,2]
[398861421,1765932633160,-500.0,0.00012761,2]
[398861423,1765932633169,-150.0,0.00012761,2]
[398861425,1765932633178,-500.0,0.00012761,2]
[398861427,1765932633192,-500.0,0.00012761,2]
[398861430,1765932633203,-390.13281647,0.00012761,2]
[398861432,1765932633211,-500.0,0.00012761,2]
[398861434,1765932633221,-500.0,0.00012761,2]
[398861435,1765932633231,-500.0,0.00012761,2]
[398861437,1765932633240,-582.99415653,0.00012761,2]
[398861438,1765932633249,-500.0,0.00012761,2]
[398861439,1765932633258,-500.0,0.00012761,2]
[398861440,1765932633269,-855.13,0.00012761,2]
[398861441,1765932633278,-17399.45,0.00012762,2]
[398861442,1765932633287,-151.0,0.00012787,2]
[398861443,1765932633296,-288002.42596791,0.0001279,2]
[398861444,1765932633308,-205017.45423209,0.0001279,2]
[398861445,1765932633317,-4456.5506,0.0001279,2]
[398861446,1765932633326,-418.69,0.00012862,2]
[398861447,1765932633335,-166.66,0.0001287,2]
[398861448,1765932633344,-7471.99,0.00012874,2]
[398861449,1765932633354,-151.0,0.00012887,2]
[398861450,1765932633363,-150.0,0.0001289,2]
[398861451,1765932633372,-150.99,0.0001289,2]
[398861452,1765932633382,-8960.88,0.0001289,2]
[398861453,1765932633391,-34591.4,0.0001289,2]
[398861454,1765932633401,-3791.06,0.0001289,2]
[398861455,1765932633410,-999.99,0.0001289,2]
[398861456,1765932633420,-9999.99,0.0001289,2]
[398861457,1765932633431,-9999.99,0.0001289,2]
[398861458,1765932633441,-1358.78,0.0001289,2]
[398861459,1765932633451,-499.99,0.0001289,2]
[398861460,1765932633460,-855.13,0.00013035,2]
[398861461,1765932633469,-418.69,0.00013264,2]
[398861462,1765932633479,-166.66,0.00013295,2]
[398861463,1765932633488,-855.13,0.00013309,2]
[398861464,1765932633496,-216.82164497,0.00013347,2]
[398861465,1765932633505,-17018.1134934,0.0001338,2]
[398861466,1765932633514,-9330.12030265,0.0001338,2]
[398861467,1765932633523,-195.0,0.00013485,2]
[398861468,1765932633531,-250.0,0.00013485,2]
[398861469,1765932633540,-2500.0,0.00013517,2]
[398861470,1765932633548,-407.43476285,0.00013577,2]
[398861471,1765932633557,-855.13,0.00013583,2]
[398861472,1765932633566,-537.0,0.00013591,2]
[398861473,1765932633574,-151.0,0.00013609,2]
[398861474,1765932633583,-151.0,0.00013609,2]
[398861475,1765932633592,-151.0,0.00013609,2]
[398861476,1765932633600,-151.0,0.00013609,2]
[398861477,1765932633609,-500.0,0.00013609,2]
[398861478,1765932633618,-500.0,0.00013609,2]
[398861479,1765932633626,-151.0,0.00013609,2]
[398861480,1765932633635,-151.0,0.00013609,2]
[398861481,1765932633643,-500.0,0.00013609,2]
[398861482,1765932633652,-151.0,0.00013609,2]
[398861483,1765932633660,-500.0,0.00013609,2]
[398861484,1765932633670,-151.0,0.00013609,2]
[398861485,1765932633678,-500.0,0.00013609,2]
[398861486,1765932633687,-151.0,0.00013609,2]
[398861487,1765932633695,-500.0,0.00013609,2]
[398861488,1765932633704,-151.0,0.00013609,2]
[398861489,1765932633712,-500.0,0.00013609,2]
[398861490,1765932633721,-500.0,0.00013609,2]
[398861491,1765932633730,-177.21102621,0.00013609,2]
[398861492,1765932633739,-500.0,0.00013609,2]
[398861493,1765932633747,-500.0,0.00013609,2]
[398861494,1765932634073,-500.0,0.00013609,2]
[398861495,1765932634102,-200.0,0.00013609,2]
[398861496,1765932634111,-500.0,0.00013609,2]
[398861497,1765932634120,-500.0,0.00013609,2]
[398861498,1765932634130,-500.0,0.00013609,2]
[398861499,1765932634139,-500.0,0.00013609,2]
[398861500,1765932634149,-500.0,0.00013609,2]
[398861501,1765932634158,-200.0,0.00013609,2]
[398861502,1765932634168,-436.28444544,0.00013609,2]
[398861503,1765932634182,-151.0,0.00013609,2]
[398861504,1765932634194,-151.0,0.00013609,2]
[398861505,1765932634204,-151.0,0.00013609,2]
[398861506,1765932634214,-167.28365329,0.00013609,2]
[398861507,1765932634224,-500.0,0.00013609,2]
[398861508,1765932634234,-179.33499305,0.00013609,2]
[398861509,1765932634243,-500.0,0.00013616,2]
[398861510,1765932634253,-174.00457641,0.00013616,2]
[398861511,1765932634264,-173.22841663,0.00013616,2]
[398861512,1765932634274,-189.67891252,0.00013616,2]
[398861513,1765932634283,-418.69,0.00013666,2]
[398861514,1765932634294,-825.87,0.00013699,2]
[398861515,1765932634303,-166.66,0.0001372,2]
[398861516,1765932634314,-500.0,0.00013816,2]
[398861517,1765932634323,-579.99190904,0.00013816,2]
[398861518,1765932634332,-500.0,0.00013816,2]
[398861519,1765932634342,-3725.5533,0.00013817,2]
[398861520,1765932634351,-416.0,0.00013856,2]
[398861521,1765932634360,-855.13,0.00013857,2]
[398861522,1765932634371,-288.15451579,0.00013883,2]
[398861523,1765932634381,-500.0,0.00013915,2]
[398861524,1765932634392,-193.64493313,0.00013915,2]
[398861525,1765932634401,-500.0,0.00013916,2]
[398861526,1765932634410,-500.0,0.00013916,2]
[398861527,1765932634420,-500.0,0.00013916,2]
[398861528,1765932634429,-500.0,0.00013916,2]
[398861529,1765932634439,-500.0,0.00013916,2]
[398861530,1765932634449,-392.68561293,0.00013916,2]
[398861531,1765932634459,-420.0,0.0001392,2]
[398861532,1765932634468,-420.0,0.0001392,2]
[398861533,1765932634478,-1000.0,0.00013925,2]
[398861534,1765932634488,-500.0,0.00013925,2]
[398861535,1765932634497,-738.0,0.00013948,2]
[398861536,1765932634507,-1680.0,0.00013958,2]
[398861537,1765932634516,-1211.0,0.00013976,2]
[398861538,1765932634525,-418.69,0.00014068,2]
[398861539,1765932634535,-3929.7796696,0.0001407,2]
[398861540,1765932634548,-13088.3338238,0.0001407,2]
[398861541,1765932634558,-9330.12030265,0.0001407,2]
[398861542,1765932634568,-855.13,0.00014131,2]
[398861543,1765932634579,-166.66,0.00014145,2]
[398861544,1765932634589,-200.0,0.00014157,2]
[398861545,1765932634602,-500.0,0.00014273,2]
[398861546,1765932634611,-500.0,0.00014273,2]
[398861547,1765932634620,-606.81718784,0.00014273,2]
[398861548,1765932634630,-500.0,0.00014273,2]
[398861549,1765932634639,-500.0,0.00014273,2]
[398861550,1765932634650,-500.0,0.00014273,2]
[398861551,1765932634660,-500.0,0.00014273,2]
[398861552,1765932634670,-501.42980184,0.00014273,2]
[398861553,1765932634679,-500.49925318,0.00014273,2]
[398861554,1765932634688,-500.0,0.00014273,2]
[398861555,1765932634698,-500.0,0.00014273,2]
[398861556,1765932634709,-855.13,0.00014405,2]
[398861557,1765932634719,-407.43476285,0.00014464,2]
[398861558,1765932634730,-308.13534919,0.0001447,2]
[398861559,1765932634743,-110.55465081,0.0001447,2]
[398861560,1765932634754,-200.0,0.00014493,2]
[398861561,1765932634763,-207.4,0.00014493,2]
[398861562,1765932634772,-215.0738,0.00014493,2]
[398861563,1765932634781,-144.85154957,0.00014493,2]
[398861564,1765932634792,-78.17998103,0.00014493,2]
[398861565,1765932634802,-231.28369723,0.00014493,2]
[398861566,1765932634811,-239.84119403,0.00014493,2]
[398861567,1765932634820,-70.04946084,0.00014493,2]
[398861568,1765932634891,-178.66585737,0.00014493,2]
[398861569,1765932634900,-257.91778498,0.00014493,2]
[398861570,1765932634909,-267.46074303,0.00014493,2]
[398861571,1765932634918,-128.18418274,0.00014493,2]
[398861572,1765932634929,-2216.81581726,0.00014493,2]
[398861573,1765932634939,-178.0,0.00014493,2]
[398861574,1765932634950,-553.64373807,0.00014493,2]
[398861575,1765932634959,-620.0,0.00014493,2]
[398861576,1765932634968,-1000.0,0.00014493,2]
[398861577,1765932634978,-573.41564972,0.00014493,2]
[398861578,1765932634990,-426.58435028,0.00014493,2]
[398861579,1765932634999,-1000.0,0.00014493,2]
[398861580,1765932635009,-828.40877564,0.00014493,2]
[398861581,1765932635020,-171.59122436,0.00014493,2]
[398861582,1765932635029,-1000.0,0.00014493,2]
[398861583,1765932635040,-1000.0,0.00014493,2]
[398861584,1765932635050,-161.26023576,0.00014493,2]
[398861585,1765932635101,-286.98,0.00014493,2]
[398861586,1765932635112,-517.52587944,0.00014493,2]
[398861587,1765932635165,-34.2338848,0.00014493,2]
[398861588,1765932635175,-1000.0,0.00014493,2]
[398861589,1765932635188,-343.9565442,0.00014493,2]
[398861612,1765932639753,-304.26805399,0.00014493,2]
[398861613,1765932639763,-1000.0,0.00014493,2]
[398861614,1765932639772,-205.73194601,0.00014493,2]
[398861615,1765932639783,-252.52558488,0.00014493,2]
[398861616,1765932639816,-378.17299764,0.00014493,2]
[398861617,1765932639828,-163.56947147,0.00014493,2]
[398861618,1765932639837,-638.43052853,0.00014493,2]
[398861619,1765932639847,-361.56947147,0.00014493,2]
[398861621,1765932640244,-1000.0,0.00014493,2]
[398861622,1765932640273,-1000.0,0.00014493,2]
[398861623,1765932640283,-500.0,0.00014493,2]
[398861624,1765932640291,-1000.0,0.00014493,2]
[398861625,1765932640301,-500.0,0.00014493,2]
[398861626,1765932640311,-109.35633422,0.00014493,2]
[398861627,1765932640346,-388.82700236,0.00014493,2]
[398861628,1765932640358,-501.81666342,0.00014493,2]
[398861629,1765932640367,-373.47625749,0.00014493,2]
[398861630,1765932640399,-126.52374251,0.00014493,2]
[398861631,1765932640408,-786.16729763,0.00014493,2]
[398861633,1765932640445,-213.83270237,0.00014493,2]
[398861635,1765932640455,-500.0,0.00014493,2]
[398861637,1765932640468,-951.51705013,0.00014493,2]
[398861639,1765932640478,-500.0,0.00014493,2]
[398861640,1765932640487,-500.0,0.00014493,2]
[398861641,1765932640496,-500.0,0.00014493,2]
[398861642,1765932640506,-500.0,0.00014493,2]
[398861643,1765932640515,-245.02729021,0.00014493,2]
[398861644,1765932640525,-300.0,0.00014493,2]
[398861645,1765932640534,-166.66,0.0001457,2]
[398861646,1765932640544,-151.7,0.00014622,2]
[398861647,1765932640553,-855.2,0.00014679,2]
[398861648,1765932640562,-17018.1134934,0.0001476,2]
[398861649,1765932640571,-9330.12030265,0.0001476,2]
[398861651,1765932640580,-500.0,0.00014821,2]
[398861652,1765932640590,-500.0,0.00014821,2]
[398861653,1765932640599,-1000.0,0.00014821,2]
[398861654,1765932640608,-500.0,0.00014821,2]
[398861655,1765932640617,-418.69,0.00014872,2]
[398861656,1765932640626,-226.37123796,0.000149,2]
[398861657,1765932640635,-166.66,0.00014995,2]
[398861658,1765932640645,-2345.0,0.00015041,2]
[398861659,1765932640654,-574.12855637,0.00015041,2]
[398861660,1765932640664,-500.0,0.00015073,2]
[398861661,1765932640672,-500.0,0.00015073,2]
[398861662,1765932640681,-500.0,0.00015073,2]
[398861663,1765932640691,-500.0,0.00015073,2]
[398861664,1765932640700,-508.38645187,0.00015073,2]
[398861665,1765932640709,-498.08794248,0.00015073,2]
[398861666,1765932640718,-500.0,0.00015073,2]
[398861667,1765932640727,-500.0,0.00015073,2]
[398861668,1765932640736,-500.0,0.00015073,2]
[398861669,1765932640746,-500.0,0.00015073,2]
[398861670,1765932640755,-500.0,0.00015073,2]
[398861671,1765932640764,-500.0,0.00015073,2]
[398861672,1765932640773,-616.56298094,0.00015073,2]
[398861673,1765932640782,-500.0,0.00015073,2]
[398861674,1765932640791,-500.0,0.00015073,2]
[398861675,1765932640800,-500.0,0.00015073,2]
[398861676,1765932640809,-181.01,0.00015239,2]
[398861677,1765932640818,-432.0,0.0001527,2]
[398861678,1765932640827,-587.0,0.0001527,2]
[398861679,1765932640836,-418.69,0.00015274,2]
[398861680,1765932640845,-447.52547884,0.0001535,2]
[398861681,1765932640854,-407.43476285,0.00015351,2]
[398861682,1765932640863,-2351.0,0.00015354,2]
[398861683,1765932640872,-1500.0,0.00015368,2]
[398861684,1765932640881,-200.0,0.00015427,2]
[398861685,1765932640891,-17018.1134934,0.0001545,2]
[398861686,1765932640900,-9330.12030265,0.0001545,2]
[398861687,1765932640908,-500.0,0.00015539,2]
[398861688,1765932640917,-595.37131296,0.00015589,2]
[398861689,1765932640926,-1000.0,0.00015621,2]
[398861690,1765932640935,-958.21718193,0.00015621,2]
[398861691,1765932640944,-508.00692602,0.00015621,2]
[398861692,1765932640953,-395.29032598,0.00015621,2]
[398861693,1765932640962,-1000.0,0.00015621,2]
[398861694,1765932640971,-1000.0,0.00015621,2]
[398861695,1765932640980,-1000.0,0.00015621,2]
[398861696,1765932640989,-1000.0,0.00015621,2]
[398861697,1765932640998,-1000.0,0.00015621,2]
[398861698,1765932641006,-1000.0,0.00015621,2]
[398861699,1765932641016,-1000.0,0.00015621,2]
[398861700,1765932641025,-1000.0,0.00015621,2]
[398861701,1765932641034,-1000.0,0.00015621,2]
[398861702,1765932641043,-277.35679052,0.00015862,2]
[398861703,1765932641053,-606.04866215,0.00015862,2]
[398861704,1765932641063,-311.1,0.00015862,2]
[398861705,1765932641072,-1358.77671532,0.00015916,2]
[398861706,1765932641081,-2947.76,0.00016116,2]
[398861707,1765932641090,-617.40005154,0.00016137,2]
[398861708,1765932641099,-17018.1134934,0.0001614,2]
[398861709,1765932641108,-9330.12030265,0.0001614,2]
[398861710,1765932641118,-500.0,0.00016164,2]
[398861711,1765932641128,-500.0,0.00016164,2]
[398861712,1765932641138,-500.0,0.00016164,2]
[398861713,1765932641149,-1500.0,0.00016168,2]
[398861714,1765932641159,-500.0,0.00016168,2]
[398861715,1765932641168,-1500.0,0.00016168,2]
[398861716,1765932641177,-729.17576217,0.00016168,2]
[398861717,1765932641191,-500.0,0.00016168,2]
[398861718,1765932641201,-500.0,0.00016168,2]
[398861719,1765932641210,-500.0,0.00016168,2]
[398861720,1765932641220,-253.45367736,0.00016168,2]
[398861721,1765932641231,-500.0,0.00016168,2]
[398861722,1765932641241,-500.0,0.00016168,2]
[398861723,1765932641250,-214.55684319,0.00016245,2]
[398861724,1765932641259,-481.35955285,0.00016331,2]
[398861725,1765932641272,-500.0,0.00016438,2]
[398861726,1765932641281,-719.0,0.00016438,2]
[398861727,1765932641291,-719.0,0.00016438,2]
[398861728,1765932641300,-8228.41,0.00016438,2]
[398861729,1765932641310,-640.24385345,0.00016685,2]
[398861730,1765932641320,-150.0,0.00016712,2]
[398861731,1765932641329,-500.0,0.00016712,2]
[398861732,1765932641338,-150.0,0.00016712,2]
[398861733,1765932641347,-500.0,0.00016712,2]
[398861734,1765932641356,-168.28,0.00016712,2]
[398861735,1765932641365,-1000.0,0.00016716,2]
[398861736,1765932641375,-1000.0,0.00016716,2]
[398861737,1765932641384,-823.0,0.00016752,2]
[398861738,1765932641393,-214.01883147,0.00016825,2]
[398861739,1765932641402,-17018.1134934,0.0001683,2]
[398861740,1765932641411,-9330.12030265,0.0001683,2]
[398861741,1765932641420,-150.0,0.00016849,2]
[398861742,1765932641430,-500.0,0.00016849,2]
[398861743,1765932641439,-597.81263975,0.00016849,2]
[398861744,1765932641448,-412.0,0.00016889,2]
[398861745,1765932641457,-166.0,0.000169,2]
[398861746,1765932641466,-200.91809234,0.00016986,2]
[398861747,1765932641475,-500.0,0.00016986,2]
[398861748,1765932641484,-500.0,0.00016986,2]
[398861749,1765932641493,-79087.08,0.00016986,2]
[398861750,1765932641503,-1500.0,0.00016996,2]
[398861751,1765932641512,-500.0,0.00016999,2]
[398861752,1765932641521,-2000.0,0.00017,2]
[398861753,1765932641530,-250.0,0.00017,2]
[398861754,1765932641539,-151.13297348,0.00017088,2]
[398861755,1765932641549,-150.0,0.00017088,2]
[398861756,1765932641559,-150.0,0.00017088,2]
[398861757,1765932641568,-150.0,0.00017088,2]
[398861758,1765932641577,-150.20751286,0.00017088,2]
[398861759,1765932641587,-150.0,0.00017088,2]
[398861760,1765932641596,-150.0,0.00017088,2]
[398861761,1765932641606,-150.0,0.00017088,2]
[398861762,1765932641615,-150.0,0.00017088,2]
[398861763,1765932641625,-150.0,0.00017088,2]
[398861764,1765932641634,-150.0,0.00017088,2]
[398861765,1765932641643,-150.0,0.00017088,2]
[398861766,1765932641652,-150.0,0.00017088,2]
[398861767,1765932641662,-150.0,0.00017088,2]
[398861768,1765932641674,-150.0,0.00017088,2]
[398861769,1765932641685,-150.76986928,0.00017088,2]
[398861770,1765932641694,-150.58291405,0.00017088,2]
[398861771,1765932641703,-150.0,0.00017088,2]
[398861772,1765932641712,-500.0,0.00017123,2]
[398861773,1765932641722,-150.0,0.00017136,2]
[398861774,1765932641732,-150.0,0.00017142,2]
[398861775,1765932641741,-150.0,0.00017147,2]
[398861776,1765932641750,-150.0,0.00017153,2]
[398861777,1765932641759,-250.0,0.00017163,2]
[398861778,1765932641768,-150.0,0.00017178,2]
[398861779,1765932641777,-150.0,0.00017185,2]
[398861780,1765932641785,-150.0,0.00017188,2]
[398861781,1765932641794,-150.0,0.00017193,2]
[398861782,1765932641803,-150.0,0.00017196,2]
[398861783,1765932641812,-150.0,0.00017206,2]
[398861784,1765932641821,-150.0,0.00017219,2]
[398861785,1765932641830,-287.61899177,0.00017231,2]
[398861786,1765932641841,-322.6107,0.00017231,2]
[398861787,1765932641850,-663.93287602,0.00017233,2]
[398861788,1765932641859,-150.0,0.00017234,2]
[398861789,1765932641867,-150.0,0.0001725,2]
[398861790,1765932641878,-500.0,0.0001726,3]
[398861791,1765932641888,-150.0,0.00017266,2]
[398861792,1765932641898,-150.0,0.00017268,2]
[398861793,1765932641909,-150.0,0.00017282,2]
[398861794,1765932641917,-150.0,0.00017284,2]
[398861795,1765932641927,-8473.0,0.00017287,2]
[398861796,1765932641936,-150.0,0.00017288,2]
[398861797,1765932641944,-150.0,0.00017299,2]
[398861798,1765932641953,-150.0,0.00017305,2]
[398861799,1765932641962,-150.0,0.00017325,2]
[398861800,1765932641971,-151.7,0.00017328,2]
[398861801,1765932641980,-150.0,0.00017331,2]
[398861802,1765932641989,-150.0,0.0001735,2]
[398861803,1765932641997,-150.0,0.00017359,2]
[398861804,1765932642007,-150.0,0.00017359,2]
[398861805,1765932642016,-150.0,0.00017359,2]
[398861806,1765932642025,-150.0,0.0001738,2]
[398861807,1765932642034,-150.0,0.00017384,2]
[398861808,1765932642043,-150.0,0.00017387,2]
[398861809,1765932642052,-2880.371,0.00017392,2]
[398861810,1765932642061,-500.0,0.00017396,2]
[398861811,1765932642070,-150.0,0.00017404,2]
[398861812,1765932642079,-172.238,0.00017409,2]
[398861813,1765932642089,-150.0,0.00017413,2]
[398861814,1765932642098,-150.0,0.00017415,2]
[398861815,1765932642106,-150.0,0.00017428,2]
[398861816,1765932642116,-150.0,0.00017444,2]
[398861817,1765932642125,-150.0,0.00017449,2]
[398861818,1765932642133,-150.0,0.00017467,2]
[398861819,1765932642142,-150.0,0.00017467,2]
[398861820,1765932642151,-150.0,0.00017477,2]
[398861821,1765932642160,-150.0,0.0001748,2]
[398861822,1765932642169,-150.0,0.00017487,2]
[398861823,1765932642178,-187.28,0.000175,2]
[398861824,1765932642190,-150.0,0.00017503,2]
[398861825,1765932642199,-150.0,0.0001751,2]
[398861826,1765932642208,-17018.1134934,0.0001752,2]
[398861827,1765932642217,-9330.12030265,0.0001752,2]
[398861828,1765932642227,-150.0,0.00017522,2]
[398861829,1765932642235,-150.0,0.00017526,2]
[398861830,1765932642244,-564.62,0.00017534,4]